Workbook

Sheet MSU
B1: Oskari Koskelo | E1: 29.5.1990 Kuopio
B2: SUPERPESIS | E2: Runkosarja | I2: Kärkilyönnit (KL), pesänvälit | P2: Runkosarja TOP-30 | U2: Alempi loppusarja | AB2: Ylempi loppusarja TOP-10 | AG2: Play off, voitot, voittoprosentti | AL2: Arvo-ottelut | AO2: Mitalit
B3: Vuosi | C3: Sija | D3: Seura | E3: OTT | F3: KUN | G3: LÖI | H3: TOI | I3: KL | J3: 0 > 1 | K3: 1 > 2 | L3: 2 > 3 | M3: 3 > k | N3: KL-% | P3: LÖI | Q3: TOI | R3: L+T | S3: KL | U3: OTT | V3: KUN | W3: LÖI | X3: TOI | Y3: KL | Z3: KL-% | AB3: LÖI | AC3: TOI | AD3: L+T | AE3: KL | AG3: Puolivälierät | AH3: Välierät | AI3: Pronssi | AJ3: Finaalit | AL3: IL | AM3: LL | AN3: hSM | AO3: K | AP3: H | AQ3: P
B4: 2009 | C4: 3. | D4: SiiPe | F4: suomensarja | AA4: 0
B5: 2010 | AA5: 0
B6: 2011 | C6: 5. | D6: SiiPe | F6: suomensarja | O6: 0
B7: 2012 | C7: 2. | D7: SiiPe | F7: suomensarja
B8: 2013 | C8: 4. | D8: SiiPe | F8: suomensarja
B9: 2014 | C9: 7. | D9: SiiPe | F9: ykköspesis
B10: 2015 | C10: 8. | D10: SiiPe 2 | F10: suomensarja | O10: 0 | AA10: 0
B11: 2015 | C11: 9. | D11: SiiPe | F11: ykköspesis | AA11: 0
B12: 2016 | C12: 2. | D12: SiiPe | F12: ykköspesis | O12: 0 | U12: 3 | V12: 0 | W12: 0 | X12: 0 | Y12: 0 | Z12: 0.0 % | AA12: 40
B13: 2017 | C13: 7. | D13: PKP | F13: suomensarja | AA13: 0
B14: 2017 | C14: 2. | D14: SiiPe | F14: ykköspesis | U14: 3 | V14: 0 | W14: 0 | X14: 0 | Y14: 3 | Z14: 21.4 % | AA14: 74
B15: Yhteensä | E15: =SUM(E4:E14) -> 0 | F15: 0 | G15: 0 | H15: 0 | I15: 0 | J15: 0 | K15: 0 | L15: 0 | M15: 0 | O15: =SUM(O10:O14) -> 0 | P15: 0-0-0 | Q15: 0-0-0 | R15: 0-0-0 | S15: 0-0-0 | U15: 6 | V15: 0 | W15: 0 | X15: 0 | Y15: 3 | Z15: 15.0 % | AA15: =SUM(AA3:AA14) -> 114 | AB15: 0-0-0 | AC15: 0-0-0 | AD15: 0-0-0 | AE15: 0-0-0 | AG15: 0/0 | AH15: 0/0 | AI15: 0/0 | AJ15: 0/0 | AL15: =SUM(AL4:AL14) -> 0 | AM15: 0 | AN15: 0 | AO15: 0 | AP15: 0 | AQ15: 0
AG16: 0.0 % | AH16: 0.0 % | AI16: 0.0 % | AJ16: 0.0 %
B17: Pesispörssi | D17: =SUM(F15:H15)+((I15-F15-G15)/3)+(E15/3)+(AL15*25)+(AM15*25)+(AN15*10)+(AO15*25)+(AP15*20)+(AQ15*15) -> 0.0
B19: URA SUPERISSA | E19: OTT | F19: KUN | G19: LÖI | H19: TOI | I19: KL | K19: ka/L | L19: ka/T | M19: ka/KL | N19: KL-% | P19: ENSIMMÄISET RUNKOSARJASSA | AG19: ENSIMMÄISET PUDOTUSPELEISSÄ
B20: Runkosarja | P20: Ottelu
B21: Ylempi loppusarja | P21: Lyöty
B22: Alempi loppusarja | E22: =PRODUCT(U15) -> 6 | F22: =PRODUCT(V15) -> 0 | G22: 0 | H22: 0 | I22: 3 | K22: =PRODUCT((F22+G22)/E22) -> 0.00 | L22: =PRODUCT(H22/E22) -> 0.00 | M22: =PRODUCT(I22/E22) -> 0.50 | N22: =PRODUCT(I22/O22) -> 15.0 % | O22: 20 | P22: Tuotu
B23: KAIKKI | E23: =SUM(E20:E22) -> 6 | F23: =SUM(F20:F22) -> 0 | G23: =SUM(G20:G22) -> 0 | H23: =SUM(H20:H22) -> 0 | I23: =SUM(I20:I22) -> 3 | K23: =PRODUCT((F23+G23)/E23) -> 0.00 | L23: =PRODUCT(H23/E23) -> 0.00 | M23: =PRODUCT(I23/E23) -> 0.50 | N23: =PRODUCT(I23/O23) -> 15.0 % | O23: =SUM(O20:O22) -> 20 | P23: Kunnari
B25: Seurat | D25: SiiPe = Siilinjärven Pesis (1987), kasvattajaseura
D26: PKP = Puurtilan Kisa-Pojat (1948)

Sheet MYP, MSS
B1: Oskari Koskelo | E1: 29.5.1990 Kuopio
B2: YKKÖSPESIS | E2: Runkosarja | L2: Runkosarja TOP-10 | Q2: Jatkosarjat | X2: SUOMENSARJA | AA2: Runkosarja | AH2: Runkosarja TOP-10 | AM2: Jatkosarjat
B3: Vuosi | C3: Sija | D3: Seura | E3: OTT | F3: KUN | G3: LÖI | H3: TOI | I3: KL | J3: KL-% | L3: LÖI | M3: TOI | N3: L+T | O3: KL | Q3: OTT | R3: KUN | S3: LÖI | T3: TOI | U3: KL | V3: KL-% | X3: Vuosi | Y3: Sija | Z3: Seura | AA3: OTT | AB3: KUN | AC3: LÖI | AD3: TOI | AE3: KL | AF3: KL-% | AH3: LÖI | AI3: TOI | AJ3: L+T | AK3: KL | AM3: OTT | AN3: KUN | AO3: LÖI | AP3: TOI | AQ3: KL | AR3: KL-%
X4: 2009 | Y4: 3. | Z4: SiiPe | AA4: 8 | AB4: 0 | AC4: 1 | AD4: 3 | AE4: 15 | AF4: 42.9 % | AG4: 35
X6: 2011 | Y6: 5. | Z6: SiiPe | AA6: 16 | AB6: 1 | AC6: 26 | AD6: 14 | AE6: 72 | AF6: 58.5 % | AG6: 123 | AH6: 7. | AK6: 10.
X7: 2012 | Y7: 2. | Z7: SiiPe | AA7: 16 | AB7: 0 | AC7: 14 | AD7: 12 | AE7: 40 | AF7: 41.2 % | AG7: 97 | AM7: 6 | AN7: 0 | AO7: 1 | AP7: 0 | AQ7: 16 | AR7: 42.1 % | AS7: 38
X8: 2013 | Y8: 4. | Z8: SiiPe | AA8: 16 | AB8: 1 | AC8: 9 | AD8: 8 | AE8: 32 | AF8: 40.5 % | AG8: 79 | AM8: 2 | AN8: 0 | AO8: 0 | AP8: 0 | AQ8: 2 | AR8: 16.7 % | AS8: 12
B9: 2014 | C9: 7. | D9: SiiPe | E9: 16 | F9: 3 | G9: 6 | H9: 10 | I9: 33 | J9: 36.7 % | K9: 90 | X9: 2014 | Y9: 5. | Z9: SiiPe 2 | AA9: 11 | AB9: 0 | AC9: 12 | AD9: 13 | AE9: 45 | AF9: 58.4 % | AG9: 77
B10: 2015 | C10: 9. | D10: SiiPe | E10: 17 | F10: 1 | G10: 2 | H10: 2 | I10: 41 | J10: 48.8 % | K10: 84 | X10: 2015 | Y10: 8. | Z10: SiiPe 2 | AA10: 2 | AB10: 0 | AC10: 0 | AD10: 1 | AE10: 12 | AF10: 92.3 % | AG10: 13
B11: 2016 | C11: 2. | D11: SiiPe | E11: 24 | F11: 1 | G11: 5 | H11: 4 | I11: 59 | J11: 40.7 % | K11: 145 | Q11: 3 | R11: 0 | S11: 1 | T11: 0 | U11: 6 | V11: 37.5 % | W11: 16
B12: 2017 | C12: 2. | D12: SiiPe | E12: 23 | F12: 1 | G12: 9 | H12: 7 | I12: 75 | J12: 56.4 % | K12: 133 | Q12: 3 | R12: 0 | S12: 1 | T12: 0 | U12: 8 | V12: 47.1 % | W12: 17 | X12: 2017 | Y12: 7. | Z12: PKP | AA12: 2 | AB12: 0 | AC12: 2 | AD12: 0 | AE12: 7 | AF12: 46.7 % | AG12: 15
B13: YHTEENSÄ | E13: =SUM(E4:E12) -> 80 | F13: =SUM(F4:F12) -> 6 | G13: =SUM(G4:G12) -> 22 | H13: =SUM(H4:H12) -> 23 | I13: =SUM(I4:I12) -> 208 | J13: =PRODUCT(I13/K13) -> 46.0 % | K13: =SUM(K4:K12) -> 452 | Q13: =SUM(Q4:Q12) -> 6 | R13: =SUM(R4:R12) -> 0 | S13: =SUM(S4:S12) -> 2 | T13: =SUM(T4:T12) -> 0 | U13: =SUM(U4:U12) -> 14 | V13: =PRODUCT(U13/W13) -> 42.4 % | W13: =SUM(W4:W12) -> 33 | X13: YHTEENSÄ | AA13: =SUM(AA4:AA12) -> 71 | AB13: =SUM(AB4:AB12) -> 2 | AC13: =SUM(AC4:AC12) -> 64 | AD13: =SUM(AD4:AD12) -> 51 | AE13: =SUM(AE4:AE12) -> 223 | AF13: =PRODUCT(AE13/AG13) -> 50.8 % | AG13: =SUM(AG4:AG12) -> 439 | AM13: =SUM(AM4:AM12) -> 8 | AN13: =SUM(AN4:AN12) -> 0 | AO13: =SUM(AO4:AO12) -> 1 | AP13: =SUM(AP4:AP12) -> 0 | AQ13: =SUM(AQ4:AQ12) -> 18 | AR13: =PRODUCT(AQ13/AS13) -> 36.0 % | AS13: =SUM(AS4:AS12) -> 50
B15: KAIKKI OTTELUT | E15: OTT | F15: KUN | G15: LÖI | H15: TOI | I15: KL | J15: KL-% | L15: ka/L | M15: ka/T | N15: ka/l+t | O15: ka/kl | R15: Seurat | T15: SiiPe = Siilinjärven Pesis (1987), kasvattajaseura
B16: SUPERPESIS | E16: 6 | F16: 0 | G16: 0 | H16: 0 | I16: 3 | J16: 15.0 % | K16: =PRODUCT(I16/J16) -> 20 | L16: =PRODUCT((F16+G16)/E16) -> 0.00 | M16: =PRODUCT(H16/E16) -> 0.00 | N16: =PRODUCT((F16+G16+H16)/E16) -> 0.00 | O16: =PRODUCT(I16/E16) -> 0.50 | T16: PKP = Puurtilan Kisa-Pojat (1948)
B17: YKKÖSPESIS | E17: =PRODUCT(E13+Q13) -> 86 | F17: =PRODUCT(F13+R13) -> 6 | G17: =PRODUCT(G13+S13) -> 24 | H17: =PRODUCT(H13+T13) -> 23 | I17: =PRODUCT(I13+U13) -> 222 | J17: =PRODUCT(I17/K17) -> 45.8 % | K17: =PRODUCT(K13+W13) -> 485 | L17: =PRODUCT((F17+G17)/E17) -> 0.35 | M17: =PRODUCT(H17/E17) -> 0.27 | N17: =PRODUCT((F17+G17+H17)/E17) -> 0.62 | O17: =PRODUCT(I17/E17) -> 2.58
B18: SUOMENSARJA | E18: =PRODUCT(AA13+AM13) -> 79 | F18: =PRODUCT(AB13+AN13) -> 2 | G18: =PRODUCT(AC13+AO13) -> 65 | H18: =PRODUCT(AD13+AP13) -> 51 | I18: =PRODUCT(AE13+AQ13) -> 241 | J18: =PRODUCT(I18/K18) -> 49.3 % | K18: =PRODUCT(AG13+AS13) -> 489 | L18: =PRODUCT((F18+G18)/E18) -> 0.85 | M18: =PRODUCT(H18/E18) -> 0.65 | N18: =PRODUCT((F18+G18+H18)/E18) -> 1.49 | O18: =PRODUCT(I18/E18) -> 3.05
B19: YHTEENSÄ | E19: =SUM(E16:E18) -> 171 | F19: =SUM(F16:F18) -> 8 | G19: 89 | H19: 74 | I19: 466 | J19: =PRODUCT(I19/K19) -> 46.9 % | K19: =SUM(K16:K18) -> 994 | L19: =PRODUCT((F19+G19)/E19) -> 0.57 | M19: =PRODUCT(H19/E19) -> 0.43 | N19: =PRODUCT((F19+G19+H19)/E19) -> 1.00 | O19: =PRODUCT(I19/E19) -> 2.73
